lending/lending_fUSD_20240809
["ID","MTS","AMOUNT","RATE_DAILY","PERIOD"]
[334493640,1723167043000,-500.0,0.00024286,5]
[334493642,1723167043011,-500.0,0.00024286,5]
[334493644,1723167043023,-206.96496174,0.00024286,5]
[334493647,1723167043036,-187.0440382,0.00024286,5]
[334493649,1723167043047,-198.81467932,0.00024286,2]
[334493651,1723167043058,-174492.1764,0.00024287,2]
[334493653,1723167043071,-3106.7755386,0.00024289,4]
[334493654,1723167043084,-6213.5510772,0.0002429,4]
[334493655,1723167043095,-192.07548747,0.00024297,2]
[334493656,1723167043105,-500.0,0.00024299,5]
[334493657,1723167043116,-500.0,0.00024299,5]
[334493658,1723167043128,-500.0,0.00024299,5]
[334493659,1723167043140,-522.77,0.00024299,5]
[334493660,1723167043152,-1571.1,0.00024299,5]
[334493661,1723167043164,-500.0,0.00024299,5]
[334493662,1723167043175,-18163.24963105,0.000243,2]
[334493663,1723167043187,-5611.49314179,0.000243,14]
[334493664,1723167043201,-3106.7755386,0.0002438,4]
[334493665,1723167043211,-1000.0,0.00024387,2]
[334493666,1723167043222,-3106.7755386,0.0002439,4]
[334493667,1723167043234,-6213.5510772,0.0002439,4]
[334493668,1723167043247,-1000.0,0.00024398,2]
[334493669,1723167043258,-177.73863604,0.00024399,2]
[334493670,1723167043270,-801.35400076,0.000244,2]
[334493671,1723167043283,-176.76776976,0.000244,2]
[334493672,1723167043294,-540.04,0.000244,5]
[334493673,1723167043306,-500.0,0.000244,5]
[334493674,1723167043320,-500.0,0.000244,5]
[334493675,1723167043332,-500.0,0.000244,5]
[334493676,1723167043344,-500.0,0.000244,5]
[334493677,1723167043357,-500.0,0.000244,5]
[334493678,1723167043367,-500.0,0.000244,5]
[334493679,1723167043378,-500.0,0.000244,5]
[334493682,1723167043387,-931.04,0.000244,5]
[334493684,1723167043398,-626.04,0.000244,5]
[334493686,1723167043409,-853.83,0.000244,5]
[334493688,1723167043421,-500.0,0.000244,5]
[334493689,1723167043434,-500.0,0.000244,5]
[334493690,1723167043446,-1237.13,0.000244,5]
[334493691,1723167043456,-500.0,0.000244,5]
[334493692,1723167043466,-655.55,0.000244,5]
[334493693,1723167043478,-500.0,0.000244,5]
[334493695,1723167043489,-1685.11129762,0.000244,2]
[334493696,1723167043501,-500.0,0.000244,5]
[334493697,1723167043512,-1012.69,0.000244,5]
[334493698,1723167043523,-759.37,0.000244,5]
[334493699,1723167043533,-1085.63,0.000244,5]
[334493701,1723167043544,-1733.63,0.000244,5]
[334493702,1723167043554,-1412.78,0.000244,5]
[334493703,1723167043564,-510.66,0.000244,5]
[334493704,1723167043575,-768.23,0.000244,5]
[334493705,1723167043587,-500.0,0.000244,5]
[334493706,1723167043598,-500.0,0.000244,5]
[334493707,1723167043608,-1032.78,0.000244,5]
[334493708,1723167043619,-500.0,0.000244,5]
[334493709,1723167043630,-386.30826569,0.000244,5]
[334493710,1723167043641,-204.83088775,0.000244,5]
[334493711,1723167043652,-500.0,0.000244,5]
[334493712,1723167043664,-500.0,0.000244,5]
[334493713,1723167043674,-500.0,0.000244,5]
[334493714,1723167043685,-3836.07597995,0.000244,2]
[334493715,1723167043697,-13527.99,0.000244,5]
[334493716,1723167043709,-2893.25,0.000244,5]
[334493717,1723167043721,-500.0,0.000244,5]
[334493718,1723167043731,-310.24046726,0.000244,5]
[334493719,1723167043742,-884.61,0.000244,5]
[334493720,1723167043754,-257.6264654,0.000244,5]
[334493721,1723167043765,-500.0,0.000244,5]
[334493722,1723167043775,-1892.0,0.000244,2]
[334493723,1723167043787,-551.0,0.000244,2]
[334493724,1723167043798,-1154.0,0.000244,2]
[334493725,1723167043809,-3289.0,0.000244,2]
[334493726,1723167043820,-150.0,0.000244,2]
[334493727,1723167043831,-1269.941,0.000244,2]
[334493728,1723167043842,-931.397,0.000244,2]
[334493729,1723167043853,-623.578,0.000244,2]
[334493730,1723167043865,-1224.58,0.000244,2]
[334493731,1723167043875,-1945.13582121,0.000244,2]
[334493732,1723167043889,-391.76517879,0.000244,2]
[334493733,1723167043900,-17173.029,0.000244,2]
[334493734,1723167043913,-1752.659,0.000244,2]
[334493735,1723167043924,-278.227,0.000244,2]
[334493736,1723167043935,-180.0,0.00024461,2]
[334493737,1723167043945,-3106.7755386,0.00024466,4]
[334493738,1723167043957,-200.0,0.00024473,2]
[334493739,1723167043968,-200.0,0.00024473,2]
[334493740,1723167043978,-200.0,0.00024473,2]
[334493741,1723167043990,-9320.3266158,0.00024476,4]
[334493742,1723167044002,-3106.7755386,0.00024485,4]
[334493743,1723167044013,-6213.5510772,0.00024486,4]
[334493744,1723167044025,-345.88,0.00024486,5]
[334493745,1723167044035,-500.0,0.00024486,5]
[334493746,1723167044046,-500.0,0.00024486,5]
[334493747,1723167044058,-500.0,0.00024486,5]
[334493748,1723167044068,-500.0,0.00024486,5]
[334493749,1723167044079,-500.0,0.00024486,5]
[334493750,1723167044090,-500.0,0.00024486,5]
[334493751,1723167044101,-500.0,0.00024486,5]
[334493752,1723167044111,-500.0,0.00024486,5]
[334493753,1723167044122,-500.0,0.00024486,5]
[334493754,1723167044133,-500.0,0.00024486,5]
[334493755,1723167044145,-500.0,0.00024486,5]
[334493756,1723167044156,-500.0,0.00024486,5]
[334493757,1723167044167,-500.0,0.00024486,5]
[334493758,1723167044180,-500.0,0.00024486,5]
[334493759,1723167044192,-500.0,0.00024486,5]
[334493760,1723167044209,-628.45,0.00024486,5]
[334493761,1723167044224,-500.0,0.00024486,5]
[334493762,1723167044236,-500.0,0.00024486,5]
[334493763,1723167044248,-500.0,0.00024486,5]
[334493764,1723167044260,-500.0,0.00024486,5]
[334493765,1723167044270,-500.0,0.00024486,5]
[334493766,1723167044281,-410.33755912,0.00024486,5]
[334493767,1723167044934,-1290.30702103,0.00023199,2]
[334493768,1723167044996,-1491.39070486,0.00023199,2]
[334493769,1723167045007,-685.47012429,0.00023199,2]
[334493770,1723167045018,-6532.83214982,0.00023199,2]
[334493771,1723167045028,-360.564,0.00024328,2]
[334493772,1723167045038,-89.66244088,0.00024486,5]
[334493773,1723167045047,-500.0,0.00024486,5]
[334493774,1723167045056,-500.0,0.00024486,5]
[334493775,1723167045066,-500.0,0.00024486,5]
[334493776,1723167045076,-500.0,0.00024486,5]
[334493777,1723167045085,-500.0,0.00024486,5]
[334493778,1723167045094,-500.0,0.00024486,5]
[334493779,1723167045104,-500.0,0.00024486,5]
[334493780,1723167045113,-532.82,0.00024486,5]
[334493781,1723167045123,-290.72633023,0.00024486,5]
[334493782,1723167045135,-209.27366977,0.00024486,5]
[334493783,1723167045145,-112.49895478,0.00024486,5]
[334493784,1723167045156,-234.46104522,0.00024486,5]
[334493785,1723167045166,-500.0,0.00024486,5]
[334493786,1723167045176,-150.0,0.00024486,5]
[334493787,1723167045185,-504.38,0.00024486,5]
[334493788,1723167045196,-500.0,0.00024486,5]
[334493789,1723167045206,-500.0,0.00024486,5]
[334493790,1723167045215,-496.74,0.00024486,5]
[334493791,1723167045225,-500.0,0.00024486,5]
[334493792,1723167045238,-500.0,0.00024486,5]
[334493793,1723167045248,-556.24,0.00024486,5]
[334493794,1723167045258,-500.0,0.00024486,5]
[334493795,1723167045268,-500.0,0.00024486,5]
[334493796,1723167045278,-500.0,0.00024486,5]
[334493797,1723167045287,-500.0,0.00024486,5]
[334493798,1723167045296,-500.0,0.00024486,5]
[334493799,1723167045307,-500.0,0.00024486,5]
[334493800,1723167045316,-5304.8,0.00024486,5]
[334493801,1723167045325,-151.0,0.00024486,7]
[334493802,1723167045334,-151.0,0.00024486,7]
[334493803,1723167045343,-153.688003,0.00024486,7]
[334493804,1723167045353,-262.74974945,0.00024486,5]
[334493805,1723167045362,-18640.6532316,0.00024487,4]
[334493806,1723167045371,-151.0,0.00024487,7]
[334493807,1723167045381,-151.0,0.00024487,7]
[334493808,1723167045390,-49708.4086176,0.00024488,4]
[334493809,1723167045400,-6213.5510772,0.00024489,4]
[334493810,1723167045411,-540.04,0.00024495,5]
[334493811,1723167045420,-500.0,0.00024495,5]
[334493812,1723167045431,-151.0,0.00024495,2]
[334493813,1723167045440,-500.0,0.00024495,5]
[334493814,1723167045451,-151.0,0.00024495,7]
[334493815,1723167045460,-500.0,0.00024495,5]
[334493816,1723167045469,-151.0,0.00024495,7]
[334493817,1723167045479,-626.04,0.00024495,5]
[334493818,1723167045489,-500.0,0.00024495,5]
[334493819,1723167045498,-500.0,0.00024495,5]
[334493820,1723167045508,-151.0,0.00024495,7]
[334493821,1723167045518,-1237.13,0.00024495,5]
[334493822,1723167045528,-500.0,0.00024495,5]
[334493823,1723167045538,-500.0,0.00024496,5]
[334493824,1723167045548,-500.0,0.00024496,5]
[334493825,1723167045559,-500.0,0.00024496,5]
[334493826,1723167045568,-500.0,0.00024496,5]
[334493827,1723167045578,-500.0,0.00024496,5]
[334493828,1723167045588,-500.0,0.00024496,5]
[334493829,1723167045597,-193.26,0.00024496,5]
[334493830,1723167045607,-500.0,0.00024496,5]
[334493831,1723167045616,-462.27,0.00024496,5]
[334493832,1723167045626,-500.0,0.00024496,5]
[334493833,1723167045636,-500.0,0.00024496,5]
[334493834,1723167045645,-500.0,0.00024496,5]
[334493835,1723167045655,-500.0,0.00024496,5]
[334493836,1723167045664,-448.28,0.00024496,5]
[334493837,1723167045674,-609.73,0.00024496,5]
[334493838,1723167045684,-500.0,0.00024496,5]
[334493839,1723167045693,-500.0,0.00024496,5]
[334493840,1723167045704,-211.78,0.00024496,5]
[334493841,1723167045714,-500.0,0.00024496,5]
[334493842,1723167045723,-500.0,0.00024496,5]
[334493843,1723167045732,-500.0,0.00024496,5]
[334493844,1723167045743,-252.11,0.00024496,5]
[334493845,1723167045752,-500.0,0.00024496,5]
[334493846,1723167045762,-500.0,0.00024496,5]
[334493847,1723167045771,-381.03,0.00024496,5]
[334493848,1723167045780,-500.0,0.00024496,5]
[334493849,1723167045789,-389.92,0.00024496,5]
[334493850,1723167045799,-536.78,0.00024496,5]
[334493851,1723167045808,-150.0,0.00024496,5]
[334493852,1723167045818,-500.0,0.00024496,5]
[334493853,1723167045829,-500.0,0.00024496,5]
[334493854,1723167045839,-500.0,0.00024496,5]
[334493855,1723167045850,-500.0,0.00024496,5]
[334493856,1723167045861,-482.88,0.00024496,5]
[334493857,1723167045872,-500.0,0.00024496,5]
[334493858,1723167045883,-159.138066,0.00024496,7]
[334493859,1723167045892,-439.56,0.00024496,5]
[334493860,1723167045903,-151.0,0.00024496,7]
[334493861,1723167045912,-151.0,0.00024496,7]
[334493862,1723167045921,-500.0,0.00024496,5]
[334493863,1723167045931,-500.0,0.00024496,5]
[334493864,1723167045940,-500.0,0.00024496,5]
[334493865,1723167045951,-5304.8,0.00024496,5]
[334493866,1723167045960,-264.87,0.00024496,5]
[334493867,1723167045969,-1032.78,0.00024496,5]
[334493868,1723167045979,-500.0,0.00024496,5]
[334493869,1723167045988,-500.0,0.00024496,5]
[334493870,1723167045997,-500.0,0.00024496,5]
[334493871,1723167046006,-198.62,0.00024497,5]
[334493872,1723167046016,-261.1,0.00024497,5]
[334493873,1723167046026,-500.0,0.00024497,5]
[334493874,1723167046035,-500.0,0.00024497,5]
[334493875,1723167046044,-500.0,0.00024497,5]
[334493876,1723167046054,-347.87,0.00024497,5]
[334493877,1723167046063,-222.37,0.00024497,5]
[334493878,1723167046072,-500.0,0.00024497,5]
[334493879,1723167046082,-500.0,0.00024497,5]
[334493880,1723167046092,-562.15,0.00024497,5]
[334493881,1723167046101,-443.68,0.00024497,5]
[334493882,1723167046111,-500.0,0.00024497,5]
[334493883,1723167046120,-463.8,0.00024497,5]
[334493884,1723167046130,-151.71,0.00024497,5]
[334493885,1723167046139,-243.81,0.00024497,5]
[334493886,1723167046148,-500.0,0.00024497,5]
[334493887,1723167046158,-500.0,0.00024497,5]
[334493888,1723167046167,-215.52,0.00024497,5]
[334493889,1723167046177,-500.0,0.00024497,5]
[334493890,1723167046186,-500.0,0.00024497,5]
[334493891,1723167046196,-302.0,0.00024497,5]
[334493892,1723167046206,-256.79,0.00024497,5]
[334493893,1723167046216,-377.04,0.00024497,5]
[334493894,1723167046226,-500.0,0.00024497,5]
[334493895,1723167046238,-500.0,0.00024497,5]
[334493896,1723167046248,-500.0,0.00024497,5]
[334493897,1723167046257,-500.0,0.00024497,5]
[334493898,1723167046267,-500.0,0.00024497,5]
[334493899,1723167046277,-500.0,0.00024497,5]
[334493900,1723167046287,-574.14,0.00024497,5]
[334493901,1723167046296,-500.0,0.00024497,5]
[334493902,1723167046305,-500.0,0.00024497,5]
[334493903,1723167046318,-500.0,0.00024497,5]
[334493904,1723167046327,-500.0,0.00024497,5]
[334493905,1723167046336,-350.33,0.00024497,5]
[334493906,1723167046345,-500.0,0.00024497,5]
[334493907,1723167046355,-177.43,0.00024497,5]
[334493908,1723167046364,-343.29,0.00024497,5]
[334493909,1723167046373,-319.28,0.00024497,5]
[334493910,1723167046383,-500.0,0.00024497,5]
[334493911,1723167046392,-512.38,0.00024497,5]
[334493912,1723167046401,-500.0,0.00024497,5]
[334493913,1723167046410,-500.0,0.00024497,5]
[334493914,1723167046420,-500.0,0.00024497,5]
[334493915,1723167046429,-303.38,0.00024497,5]
[334493916,1723167046439,-428.86,0.00024497,5]
[334493917,1723167046450,-365.21,0.00024497,5]
[334493918,1723167046460,-500.0,0.00024497,5]
[334493919,1723167046469,-500.0,0.00024497,5]
[334493920,1723167046478,-304.4,0.00024497,5]
[334493921,1723167046488,-500.0,0.00024497,5]
[334493922,1723167046497,-500.0,0.00024497,5]
[334493923,1723167046506,-540.04,0.00024497,5]
[334493924,1723167046516,-500.0,0.00024497,5]
[334493925,1723167046526,-500.0,0.00024497,5]
[334493926,1723167046536,-500.0,0.00024497,5]
[334493927,1723167046545,-188.32,0.00024497,5]
[334493928,1723167046554,-500.0,0.00024497,5]
[334493929,1723167046563,-500.0,0.00024497,5]
[334493930,1723167046573,-500.0,0.00024497,5]
[334493931,1723167046582,-500.0,0.00024497,5]
[334493932,1723167046591,-500.0,0.00024497,5]
[334493933,1723167046601,-500.0,0.00024497,5]
[334493934,1723167046610,-500.0,0.00024497,5]
[334493935,1723167046619,-500.0,0.00024497,5]
[334493936,1723167046628,-931.04,0.00024497,5]
[334493937,1723167046637,-500.0,0.00024497,5]
[334493938,1723167046646,-931.04,0.00024497,5]
[334493939,1723167046658,-626.04,0.00024497,5]
[334493940,1723167046669,-500.0,0.00024497,5]
[334493941,1723167046679,-500.0,0.00024497,5]
[334493942,1723167046688,-853.83,0.00024497,5]
[334493943,1723167046699,-853.83,0.00024497,5]
[334493944,1723167046708,-500.0,0.00024497,5]
[334493945,1723167046717,-500.0,0.00024497,5]
[334493946,1723167046726,-500.0,0.00024497,5]
[334493947,1723167046735,-500.0,0.00024497,5]
[334493948,1723167046744,-1237.13,0.00024497,5]
[334493949,1723167046753,-500.0,0.00024497,5]
[334493950,1723167046763,-500.0,0.00024497,5]
[334493951,1723167046772,-655.55,0.00024497,5]
[334493952,1723167046781,-500.0,0.00024497,5]
[334493953,1723167046792,-655.55,0.00024497,5]
[334493954,1723167046802,-500.0,0.00024497,5]
[334493955,1723167046811,-522.77,0.00024497,5]
[334493956,1723167046821,-522.77,0.00024497,5]
[334493957,1723167046830,-1012.69,0.00024497,5]
[334493958,1723167046840,-1012.69,0.00024497,5]
[334493959,1723167046849,-151.0,0.00024497,7]
[334493960,1723167046858,-759.37,0.00024497,5]
[334493961,1723167046869,-759.37,0.00024497,5]
[334493962,1723167046879,-1571.1,0.00024497,5]
[334493963,1723167046889,-1085.63,0.00024497,5]
[334493964,1723167046899,-1571.1,0.00024497,5]
[334493965,1723167046910,-1085.63,0.00024497,5]
[334493966,1723167046921,-1733.63,0.00024497,5]
[334493967,1723167046930,-1733.63,0.00024497,5]
[334493968,1723167046940,-1412.78,0.00024497,5]
[334493969,1723167046951,-1412.78,0.00024497,5]
[334493970,1723167046962,-510.66,0.00024497,5]
[334493971,1723167046971,-510.66,0.00024497,5]
[334493972,1723167046980,-768.23,0.00024497,5]
[334493973,1723167046989,-768.23,0.00024497,5]
[334493974,1723167046999,-500.0,0.00024497,5]
[334493975,1723167047008,-500.0,0.00024497,5]
[334493976,1723167047017,-1032.78,0.00024497,5]
[334493977,1723167047026,-500.0,0.00024497,5]
[334493978,1723167047035,-500.0,0.00024497,5]
[334493979,1723167047045,-500.0,0.00024497,5]
[334493980,1723167047056,-500.0,0.00024497,5]
[334493982,1723167047066,-500.0,0.00024497,5]
[334493984,1723167047076,-500.0,0.00024497,5]
[334493986,1723167047086,-13527.99,0.00024497,5]
[334493988,1723167047096,-13527.99,0.00024497,5]
[334493990,1723167047106,-2893.25,0.00024497,5]
[334493992,1723167047116,-2893.25,0.00024497,5]
[334493994,1723167047127,-500.0,0.00024497,5]
[334493996,1723167047136,-884.61,0.00024497,5]
[334493998,1723167047145,-884.61,0.00024497,5]
[334494000,1723167047154,-151.0,0.00024497,7]
[334494002,1723167047163,-500.0,0.00024497,5]
[334494004,1723167047172,-500.0,0.00024497,5]
[334494006,1723167047181,-500.0,0.00024497,5]
[334494008,1723167047191,-151.0,0.00024497,7]
[334494010,1723167047202,-500.0,0.00024498,5]
[334494012,1723167047212,-584.99,0.00024498,5]
[334494014,1723167047222,-500.0,0.00024498,5]
[334494016,1723167047236,-545.9,0.00024498,5]
[334494018,1723167047246,-156.18,0.00024498,5]
[334494020,1723167047256,-500.0,0.00024498,5]
[334494022,1723167047266,-381.84,0.00024498,5]
[334494024,1723167047279,-208.47,0.00024498,5]
[334494026,1723167047288,-499.3,0.00024498,5]
[334494028,1723167047298,-347.1,0.00024498,5]
[334494029,1723167047307,-500.0,0.00024498,5]
[334494030,1723167047319,-249.65,0.00024498,5]
[334494031,1723167047329,-369.32,0.00024498,5]
[334494032,1723167047339,-257.81,0.00024498,5]
[334494033,1723167047349,-234.07,0.00024498,5]
[334494034,1723167047358,-231.4,0.00024498,5]
[334494035,1723167047368,-181.62,0.00024498,5]
[334494036,1723167047378,-500.0,0.00024498,5]
[334494038,1723167047392,-500.0,0.00024498,5]
[334494039,1723167047401,-637.44,0.00024498,5]
[334494040,1723167047411,-500.0,0.00024498,5]
[334494041,1723167047420,-272.06,0.00024498,5]
[334494042,1723167047430,-341.28,0.00024498,5]
[334494043,1723167047440,-500.0,0.00024498,5]
[334494044,1723167047453,-500.0,0.00024498,5]
[334494045,1723167047470,-500.0,0.00024498,5]
[334494046,1723167047479,-307.72,0.00024498,5]
[334494047,1723167047488,-472.8,0.00024498,5]
[334494048,1723167047498,-500.0,0.00024498,5]
[334494049,1723167047507,-500.0,0.00024498,5]
[334494050,1723167047516,-607.72,0.00024498,5]
[334494051,1723167047525,-500.0,0.00024498,5]
[334494052,1723167047535,-448.88,0.00024498,5]
[334494053,1723167047544,-500.0,0.00024498,5]
[334494054,1723167047554,-247.96,0.00024498,5]
[334494055,1723167047563,-281.11,0.00024498,5]
[334494056,1723167047572,-500.0,0.00024498,5]
[334494057,1723167047581,-262.01,0.00024498,5]
[334494058,1723167047591,-609.91,0.00024498,5]
[334494059,1723167047600,-330.28,0.00024498,5]
[334494060,1723167047609,-500.0,0.00024498,5]
[334494061,1723167047618,-500.0,0.00024498,5]
[334494062,1723167047627,-400.29,0.00024498,5]
[334494063,1723167047636,-151.0,0.00024498,7]
[334494064,1723167047747,-398.65,0.00024498,5]
[334494065,1723167047775,-500.0,0.00024498,5]
[334494066,1723167047784,-500.0,0.00024498,5]
[334494067,1723167047793,-500.0,0.00024498,5]
[334494068,1723167047802,-500.0,0.00024498,5]
[334494069,1723167047811,-500.0,0.00024498,5]
[334494070,1723167047820,-451.61,0.00024498,5]
[334494071,1723167047829,-500.0,0.00024498,5]
[334494072,1723167047838,-500.0,0.00024498,5]
[334494073,1723167047847,-500.0,0.00024498,5]
[334494074,1723167047857,-500.0,0.00024498,5]
[334494075,1723167047866,-151.0,0.00024498,7]
[334494076,1723167047875,-165.87,0.00024498,5]
[334494077,1723167047884,-500.0,0.00024498,5]
[334494078,1723167047894,-500.0,0.00024498,5]
[334494079,1723167047903,-500.0,0.00024498,5]
[334494080,1723167047912,-579.84,0.00024498,5]
[334494081,1723167047922,-247.41,0.00024498,5]
[334494082,1723167047931,-500.0,0.00024498,5]
[334494083,1723167047940,-242.3,0.00024498,5]
[334494084,1723167047955,-500.0,0.00024498,5]
[334494085,1723167047969,-628.33,0.00024498,5]
[334494086,1723167047978,-500.0,0.00024498,5]
[334494087,1723167047988,-500.0,0.00024498,5]
[334494088,1723167047997,-500.0,0.00024498,5]
[334494089,1723167048007,-500.0,0.00024498,5]
[334494090,1723167048016,-500.0,0.00024498,5]
[334494091,1723167048025,-500.0,0.00024498,5]
[334494092,1723167048035,-204.11,0.00024498,5]
[334494093,1723167048044,-500.0,0.00024498,5]
[334494094,1723167048053,-500.0,0.00024498,5]
[334494095,1723167048063,-500.0,0.00024498,5]
[334494096,1723167048072,-500.0,0.00024498,5]
[334494097,1723167048081,-355.57,0.00024498,5]
[334494098,1723167048091,-500.0,0.00024498,5]
[334494099,1723167048100,-500.0,0.00024498,5]
[334494100,1723167048109,-491.83964666,0.00024498,5]
[334494101,1723167048118,-500.0,0.00024498,5]
[334494102,1723167048128,-596.55,0.00024498,5]
[334494103,1723167048136,-500.0,0.00024498,5]
[334494104,1723167048146,-500.0,0.00024498,5]
[334494105,1723167048155,-371.93,0.00024498,5]
[334494106,1723167048165,-500.0,0.00024498,5]
[334494107,1723167048175,-500.0,0.00024498,5]
[334494108,1723167048184,-500.0,0.00024498,5]
[334494109,1723167048195,-375.41,0.00024498,5]
[334494110,1723167048204,-500.0,0.00024498,5]
[334494111,1723167048215,-500.0,0.00024498,5]
[334494112,1723167048224,-439.22,0.00024498,5]
[334494113,1723167048234,-500.0,0.00024498,5]
[334494114,1723167048245,-500.0,0.00024498,5]
[334494115,1723167048254,-500.0,0.00024498,5]
[334494116,1723167048264,-500.0,0.00024498,5]
[334494117,1723167048273,-500.0,0.00024498,5]
[334494118,1723167048283,-501.21,0.00024498,5]
[334494119,1723167048292,-500.0,0.00024498,5]
[334494120,1723167048301,-631.3,0.00024498,5]
[334494121,1723167048312,-190.403056,0.00024498,7]
[334494122,1723167048321,-151.0,0.00024498,7]
[334494123,1723167048331,-151.0,0.00024498,7]
[334494124,1723167048341,-151.0,0.00024498,7]
[334494125,1723167048350,-150.0,0.00024498,5]
[334494126,1723167048359,-150.0,0.00024498,5]
[334494127,1723167048368,-150.0,0.00024498,5]
[334494128,1723167048378,-150.0,0.00024498,5]
[334494129,1723167048388,-388.82,0.00024498,5]
[334494130,1723167048397,-500.0,0.00024498,5]
[334494131,1723167048407,-151.68,0.00024498,5]
[334494132,1723167048417,-500.0,0.00024498,5]
[334494133,1723167048427,-500.0,0.00024498,5]
[334494134,1723167048436,-219.38,0.00024498,5]
[334494135,1723167048449,-345.38,0.00024498,5]
[334494136,1723167048459,-205.67107,0.00024498,7]
[334494137,1723167048468,-205.67107,0.00024498,7]
[334494138,1723167048477,-205.67107,0.00024498,7]
[334494139,1723167048486,-205.67107,0.00024498,7]
[334494140,1723167048496,-500.0,0.00024498,5]
[334494141,1723167048505,-500.0,0.00024498,5]
[334494142,1723167048514,-562.3,0.00024498,5]
[334494143,1723167048523,-151.0,0.00024498,7]
[334494144,1723167048532,-151.0,0.00024498,7]
[334494145,1723167048542,-244.277856,0.00024498,7]
[334494146,1723167048551,-151.0,0.00024498,7]
[334494147,1723167048561,-500.0,0.00024498,5]
[334494148,1723167048570,-500.0,0.00024498,5]
[334494149,1723167048580,-500.0,0.00024498,5]
[334494150,1723167048589,-500.0,0.00024498,5]
[334494151,1723167048599,-500.0,0.00024498,5]
[334494152,1723167048608,-349.47,0.00024498,5]
[334494153,1723167048617,-540.04,0.00024498,5]
[334494154,1723167048627,-540.04,0.00024498,5]
[334494155,1723167048636,-540.04,0.00024498,5]
[334494156,1723167048646,-500.0,0.00024498,5]
[334494157,1723167048655,-500.0,0.00024498,5]
[334494158,1723167048666,-500.0,0.00024498,5]
[334494159,1723167048675,-500.0,0.00024498,5]
[334494160,1723167048685,-500.0,0.00024498,5]
[334494161,1723167048697,-500.0,0.00024498,5]
[334494162,1723167048707,-500.0,0.00024498,5]
[334494163,1723167048717,-500.0,0.00024498,5]
[334494164,1723167048727,-500.0,0.00024498,5]
[334494165,1723167048737,-500.0,0.00024498,5]
[334494166,1723167048746,-500.0,0.00024498,5]
[334494167,1723167048756,-500.0,0.00024498,5]
[334494168,1723167048765,-500.0,0.00024498,5]
[334494169,1723167048774,-500.0,0.00024498,5]
[334494170,1723167048783,-500.0,0.00024498,5]
[334494171,1723167048793,-500.0,0.00024498,5]
[334494172,1723167048802,-500.0,0.00024498,5]
[334494173,1723167048812,-500.0,0.00024498,5]
[334494174,1723167048821,-500.0,0.00024498,5]
[334494175,1723167048830,-151.0,0.00024498,7]
[334494176,1723167048839,-500.0,0.00024498,5]
[334494177,1723167048848,-500.0,0.00024498,5]
[334494178,1723167048857,-500.0,0.00024498,5]